Cogmind - Beta 15 @@@ ROGUE MODE // 2025.05.27 @ 19:13:28 Player: Peawet Result: Destroyed by C-17 Slicer with Blade Saw Performance ------------- Evolutions (2) 1000 Regions Visited (3) 600 Robots Destroyed (36) 180 Value Destroyed (1047) 1047 Prototype IDs (0) 0 Alien Tech Used (0) 0 Bonus (0) 0 TOTAL SCORE: 2827 Bonus ------- None Cogmind --------- Core Integrity 0/550 Matter 278/300 Energy 98/100 System Corruption 0% Temperature Cool (0) Movement Core (50) Location -8/Materials Parts ------- > --- POWER (1) -------- (None) > --- PROPULSION (2) --- (None) > --- UTILITY (4) ------ (None) > --- WEAPON (4) ------- (None) > --- INVENTORY (5) ---- Ion Engine Light Ion Engine Nuclear Core Carbon-fiber Leg Titanium Leg Peak State ------------ > --- POWER ------------ Reinforced Deuterium Engine > --- PROPULSION ------- Titanium Leg Titanium Leg > --- UTILITY ---------- Improved Heat Sink Small Storage Unit Signal Interpreter Improved Targeting Computer > --- WEAPON ----------- Autogun Autogun Autogun Autogun > --- INVENTORY -------- Ion Engine Light Ion Engine Nuclear Core Carbon-fiber Leg Titanium Leg Autogun Autogun [Rating: 26] Favorites ----------- Power Ion Engine Engine Ion Engine Power Core Nuclear Core Propulsion Aluminum Leg Leg Aluminum Leg Utility Small Storage Unit Device Improved Heat Sink Storage Small Storage Unit Processor Improved Targeting Computer Protection Medium Armor Plating Weapon Autogun Energy Gun Small Laser Ballistic Gun Autogun Build | -11 -10 -9 -8 ------- Run | Yrd Mat Mat Mat Slots Evolved 4 | . . 2 2 Power . | . . . . Propulsion . | . . . . Utility 2 | . . . 2 Weapon 2 | . . 2 . Parts Attached 29 | 6 2 9 12 Power 5 | 1 . . 4 Engine 3 | 1 . . 2 Core 2 | . . . 2 Reactor . | . . . . Propulsion 7 | 2 . 5 . Treads . | . . . . Leg 7 | 2 . 5 . Wheel . | . . . . Hover . | . . . . Flight . | . . . . Utility 5 | 1 . 1 3 Device 1 | . . . 1 Storage 1 | 1 . . . Processor 2 | . . 1 1 Hackware . | . . . . Protection 1 | . . . 1 Artifact . | . . . . Weapon 12 | 2 2 3 5 Energy Gun 3 | 1 . . 2 Energy Cannon . | . . . . Ballistic Gun 9 | 1 2 3 3 Ballistic Cannon . | . . . . Launcher . | . . . . Special Weapon . | . . . . Impact Weapon . | . . . . Slashing Weapon . | . . . . Piercing Weapon . | . . . . Special Melee Weapon . | . . . . Unidentified Prototypes . | . . . . Parts Lost 15 | . . . 15 Power 1 | . . . 1 Propulsion 2 | . . . 2 Utility 4 | . . . 4 Weapon 8 | . . . 8 Highest Loss Streak 13 | . . . 13 To Critical Strikes . | . . . . Average Backups 6 | . 7 7 6 Power 1 | . 1 1 2 Propulsion 1 | . . 1 1 Utility . | . . . . Weapon 3 | . 6 3 1 Tool/Special . | . . . . Unused Backups 8 | . 1 4 3 Power . | . . . . Propulsion 5 | . . 2 3 Utility . | . . . . Weapon 3 | . 1 2 . Tool/Special . | . . . . Average Slot Usage (%) 87 | . 84 99 73 Engine 9 | . 14 11 3 Core 1 | . . . 4 Leg 20 | . 28 22 12 Storage 10 | . 14 11 6 Processor 8 | . . 10 13 Protection 1 | . . . 3 Ballistic Gun 33 | . 26 43 25 Peak Build Rating 26 | 6 9 19 26 Average Rating 14 | 4 8 15 18 On Entrance 8 | . 6 9 19 Naked Turns 66 | . . . 66 Heaviest Build 33 | 12 16 22 33 Greatest Support 34 | 20 20 34 34 Greatest Overweight (x) 3 | . . 1 3 Average Overweight (x) . | . . . . Largest Inventory Capacity 8 | 8 8 8 8 Average Capacity 7 | 6 8 8 7 Most Carried 8 | 2 8 8 7 Average Carried 6 | . 7 7 5 Final Capacity 8 | 8 8 8 5 Final Carried 8 | 2 8 8 5 Class Distribution -------------------- 60% | Gunner 39% | Mutant Dominant Class ---------------- Mutant | -10/Materials Gunner | -9/Materials Gunner | -8/Materials Resources | -11 -10 -9 -8 ----------- Run | Yrd Mat Mat Mat Matter Collected 1480 | 260 50 652 518 Remotely . | . . . . Salvage Created 1449 | . 50 781 618 Parts 101 | . 7 57 37 Haulers Intercepted 5 | . . 4 1 Recyclers Shooed . | . . . . Parts Field Recycled . | . . . . Retrieved Matter . | . . . . Parts Self-Destructed . | . . . . Prevented . | . . . . Kills | -11 -10 -9 -8 ------- Run | Yrd Mat Mat Mat Combat Hostiles Destroyed 26 | . 3 13 10 Guns 26 | . 3 13 10 Classes Destroyed 10 | . 1 7 2 Worker 2 | . . 1 1 Builder 2 | . . 2 . Hauler 5 | . . 4 1 Watcher 1 | . . 1 . Swarmer 3 | . 3 . . Grunt 16 | . . 10 6 Brawler 1 | . . . 1 Duelist 1 | . . 1 . Sentry 4 | . . 2 2 Heavy 1 | . . . 1 Best Kill Streak 9 | . 3 9 6 Combat Bots Only 6 | . 3 4 6 Max Kills in Single Turn 2 | . 1 2 2 Gunslinging . | . . . . Exploded . | . . . . Melee . | . . . . Uniques/NPCs Destroyed . | . . . . Combat | -11 -10 -9 -8 -------- Run | Yrd Mat Mat Mat Hostile Shots Fired 166 | . 6 39 121 Missed 41 | . . 15 26 Hits 125 | . 6 24 95 Melee 2 | . . . 2 Projectile 123 | . 6 24 93 AOE 2 | . . . 2 Critical Strikes 4 | . . . 4 Damage Taken 2379 | . 46 269 2064 Core 612 | . 10 33 569 Absorbed by Shields . | . . . . Core Remaining (%) 95 | 100 96 91 . Volleys Fired 76 | . 4 35 37 Largest 4 | . 2 4 4 Hottest 134 | . 46 92 134 Shots Fired 274 | . 8 140 126 Gun 274 | . 8 140 126 Cannon . | . . . . Launcher . | . . . . Special . | . . . . Kinetic 263 | . 8 140 115 Thermal 11 | . . . 11 Explosive . | . . . . Electromagnetic . | . . . . Robot Hit Streak 14 | . 1 6 14 Robot Miss Streak 6 | . 1 6 4 Penetration Max . | . . . . Secondary Targets 8 | . . 1 7 Max Gunslinging Chain 1 | . . 1 1 Shots Hit Robots 168 | . 4 67 97 Core Hits 64 | . 3 33 28 Critical Kills 4 | . . 2 2 Critical Parts Destroyed . | . . . . Critical Strikes 5 | . . 2 3 Burn 1 | . . . 1 Destroy 4 | . . 2 2 Melee Attacks . | . . . . Impact . | . . . . Slashing . | . . . . Piercing . | . . . . Sneak Attacks . | . . . . Combat Hostiles . | . . . . Follow-up Attacks . | . . . . Damage Inflicted 2754 | . 52 1196 1506 Guns 2640 | . 52 1082 1506 Cannons . | . . . . Explosions 114 | . . 114 . Melee . | . . . . Ramming . | . . . . Kinetic 2504 | . 52 1082 1370 Thermal 136 | . . . 136 Explosive 114 | . . 114 . Electromagnetic . | . . . . Impact . | . . . . Slashing . | . . . . Piercing . | . . . . Highest Corruption . | . . . . Average Corruption . | . . . . Corruption Purged . | . . . . Corruption Blocked . | . . . . Overload Shots . | . . . . Overflow Damage . | . . . . Projectiles . | . . . . Explosions . | . . . . Melee . | . . . . Knockbacks . | . . . . Impact . | . . . . Kinetic . | . . . . Secondary . | . . . . Self-Inflicted Damage . | . . . . Shots . | . . . . Rammed . | . . . . Targets Rammed . | . . . . Kicked . | . . . . Crushed . | . . . . Highest Temperature 514 | . 12 202 514 Average Temperature 98 | . 6 66 151 Received Heat Transfer 762 | . . 141 621 Effects 6 | . . . 6 Shutdowns 1 | . . . 1 Damage (minor) 1 | . . . 1 Damage (major) 4 | . . . 4 Siege Activations . | . . . . Martial Activations . | . . . . Shielding Activations . | . . . . Robots Disrupted . | . . . . Combat Hostiles . | . . . . Robots Corrupted . | . . . . Combat Hostiles . | . . . . Parts Fried . | . . . . Impact Corruptions . | . . . . Robots Melted . | . . . . Combat Hostiles . | . . . . Parts Melted 1 | . . . 1 Heat Transferred 407 | . . . 407 Parts Sabotaged . | . . . . Parts Stolen . | . . . . Parts Stripped . | . . . . Power Chain Reactions . | . . . . Alert | -11 -10 -9 -8 ------- Run | Yrd Mat Mat Mat Maximum Alert Level 1 | . . 1 . Low Security (%) 85 | 100 100 64 100 Level 1 14 | . . 35 . Level 2 . | . . . . Level 3 . | . . . . Level 4 . | . . . . Level 5 . | . . . . High Security . | . . . . Max Security . | . . . . Peak Influence 238 | . 60 238 177 Initial 83 | . . . 83 Average 91 | . 15 145 87 Influence Increases 813 | . 70 404 339 Destroy 0b10 Robot/C 520 | . 60 260 200 Destroy 0b10 Robot/NC 50 | . . 40 10 Destroy Leader 122 | . 10 60 52 Disable Machine 30 | . . 30 . Destroy Structure 16 | . . 14 2 Lose Combat Pursuer 75 | . . . 75 Influence Decreases 731 | . 70 206 455 Entered New Map 115 | . . . 115 Time Decay 466 | . 70 206 190 Lost Part 150 | . . . 150 Squads Dispatched 4 | . . 1 3 Investigation . | . . . . Extermination . | . . . . Reinforcement 4 | . . 1 3 Assault . | . . . . Garrison . | . . . . Intercept . | . . . . Searches Triggered . | . . . . Construction Impeded . | . . . . Haulers Reinforced . | . . . . Active Scanning Responses . | . . . . Cargo Convoy Interrupts . | . . . . Stealth | -11 -10 -9 -8 --------- Run | Yrd Mat Mat Mat Distress Signals 2 | . . 1 1 Communications Jammed . | . . . . Distress Signals . | . . . . Times Spotted 42 | . 3 19 20 Peak Tracking Total 6 | . 3 5 6 Tactical Retreats 1 | . . . 1 Traps | -11 -10 -9 -8 ------- Run | Yrd Mat Mat Mat Traps Triggered 1 | . 1 . . Indirectly . | . . . . Trap Hack Attempts . | . . . . Triggered . | . . . . Disarmed . | . . . . Reprogrammed . | . . . . Reused . | . . . . Traps Extracted . | . . . . Installed . | . . . . Triggered . | . . . . Machines | -11 -10 -9 -8 ---------- Run | Yrd Mat Mat Mat Machines Disabled 2 | . . 2 . Max in Single Turn 1 | . . 1 . Machines Repaired . | . . . . Machines Dismantled . | . . . . Machines Sabotaged . | . . . . Overloaded Fab Kills . | . . . . Hacking | -11 -10 -9 -8 --------- Run | Yrd Mat Mat Mat Machines Accessed 2 | . . 1 1 Terminals 1 | . . 1 . Fabricators . | . . . . Repair Stations . | . . . . Recycling Units . | . . . . Scanalyzers 1 | . . . 1 Garrison Access . | . . . . Total Hacks 5 | . . 2 3 Successful 1 | . . . 1 Failed 4 | . . 2 2 Catastrophic 2 | . . 1 1 Database Lockouts . | . . . . Manual . | . . . . Terminals 2 | . . 2 . Fabricators . | . . . . Repair Stations . | . . . . Recycling Units . | . . . . Scanalyzers 3 | . . . 3 Garrison Access . | . . . . Terminal Hacks . | . . . . Fabricator Hacks . | . . . . Repair Station Hacks . | . . . . Recycling Unit Hacks . | . . . . Scanalyzer 1 | . . . 1 Insert Component 1 | . . . 1 Garrison Access Hacks . | . . . . Unauthorized Hacks . | . . . . Terminals . | . . . . Fabricators . | . . . . Repair Stations . | . . . . Recycling Units . | . . . . Scanalyzers . | . . . . Garrison Access . | . . . . Data Cores Recovered . | . . . . Used . | . . . . Hacking Detections 2 | . . 1 1 Full Trace Events . | . . . . Feedback Events . | . . . . Feedback Blocked . | . . . . Robot Schematics Acquired . | . . . . Robots Built . | . . . . Authchips . | . . . . Time . | . . . . Total Robot Build Rating . | . . . . Part Schematics Acquired . | . . . . Parts Built . | . . . . Authchips . | . . . . Time . | . . . . Total Part Build Rating . | . . . . Parts Repaired . | . . . . Time . | . . . . Parts Recycled . | . . . . Recycled Matter . | . . . . Retrieved Matter . | . . . . Retrieved Components . | . . . . Parts Scanalyzed 1 | . . . 1 Part Schematics Acquired . | . . . . Parts Damaged 1 | . . . 1 Bothacking | -11 -10 -9 -8 ------------ Run | Yrd Mat Mat Mat Used RIF Installer . | . . . . Robots Hacked . | . . . . Non-combat . | . . . . Combat . | . . . . Robot Hacks Applied . | . . . . Relay Couplers Released . | . . . . Fabnet Peak Effective % . | . . . . Robots Rewired . | . . . . Allies Hacked . | . . . . Hacks Repelled . | . . . . Allies | -11 -10 -9 -8 -------- Run | Yrd Mat Mat Mat Total Allies . | . . . . Largest Group . | . . . . Highest-Rated Group . | . . . . Highest-Rated Ally . | . . . . Total Orders . | . . . . Ally Attacks . | . . . . Total Damage . | . . . . Kills . | . . . . Allies Corrupted . | . . . . Allies Melted . | . . . . Intel | -11 -10 -9 -8 ------- Run | Yrd Mat Mat Mat Active Infowar (turns) . | . . . . Robot Analysis Total . | . . . . Derelict Logs Recovered . | . . . . Drone Launches . | . . . . Drone Recoveries . | . . . . Exploration | -11 -10 -9 -8 ------------- Run | Yrd Mat Mat Mat Turns Passed 1213 | 55 273 504 381 Spaces Moved 734 | 39 204 270 221 Core 127 | 3 . . 124 Treads . | . . . . Legs 607 | 36 204 270 97 Wheels . | . . . . Hover . | . . . . Flight . | . . . . Fastest Speed 50 | 50 120 120 50 Average Speed 116 | 114 120 132 93 Slowest Speed 200 | 120 120 190 200 Overloaded Moves . | . . . . Propulsion Burnouts . | . . . . Robots Hopped . | . . . . Potential Cave-ins . | . . . . Cave-ins Triggered . | . . . . Exploration Rate (%) 23 | 3 42 31 18 Regions Visited 3 Branch Regions . Pre-discovered Areas . | . . . . Known Exits Taken . | . . . . Unknown Exits Taken 3 | 1 1 1 . Scrap Searched . | . . . . Spaces Dug . | . . . . Terrain Destroyed 10 | . . 10 . Melee . | . . . . Projectile . | . . . . AOE 10 | . . 10 . Terrain Rammed . | . . . . Walls Destroyed . | . . . . Machines Disabled . | . . . . Actions | -11 -10 -9 -8 --------- Run | Yrd Mat Mat Mat Total 966 | 46 226 364 330 Wait 93 | . 6 32 55 Move 731 | 38 203 269 221 Hop . | . . . . Pick Up 19 | 2 7 8 2 Fast Attach 13 | 6 2 1 4 Attach 9 | . . 3 6 Detach . | . . . . Swap 10 | . 2 5 3 Drop 15 | . 2 11 2 Fire 76 | . 4 35 37 Melee . | . . . . Ram . | . . . . Kick . | . . . . Crush . | . . . . Escape Stasis . | . . . . Rewire . | . . . . Trap . | . . . . Miscellaneous . | . . . . Route ------- -11/Scrapyard -10/Materials -9/Materials (discovered 2 exits: *Mat / [*Min]) -8/Materials (discovered 1 exit: [*Sto]) History --------- Turn | Location | Event 11 | -11/Scrapyard | Discovered new exit (range 16) 56 | -11/Scrapyard | Entered Materials 305 | -10/Materials | Build established: Mutant 321 | -10/Materials | Discovered new exit (range 7) 329 | -10/Materials | Entered another Materials area 329 | -9/Materials | Evolved 2 slots: Weapon x2 632 | -9/Materials | Build established: Gunner 652 | -9/Materials | Discovered new exit (range 8) 765 | -9/Materials | Discovered new exit (range 16) 833 | -9/Materials | Entered another Materials area 833 | -8/Materials | Evolved 2 slots: Utility x2 1017 | -8/Materials | Discovered new exit (range 15) 1124 | -8/Materials | Core integrity fell below 50% 1148 | -8/Materials | Released all parts (3) 1149 | -8/Materials | Core integrity fell below 20% 1169 | -8/Materials | Lost 13 parts (1p2n3u7w) 1214 | -8/Materials | Destroyed by C-17 Slicer with Blade Saw Last Messages --------------- 01126_ Imp. Heat Sink melted. 01126_ G-47 Trooper destroyed. 01126_ K-01 Serf collects debris. 01134_ Autogun destroyed. 01135_ K-01 Serf collects debris. 01138_ Slug penetrates Wall. 01138_ Imp. Heat Sink destroyed. 01143_ Acquired 2 matter. 01144_ G-47 Trooper heat damages Lgt. Nuclear Core. 01148_ Released Signal Interpreter. 01148_ Released Beam Rifle. 01148_ Released Lgt. Nuclear Core. 01149_ K-01 Serf destroyed. 01159_ K-01 Serf cleans the Material Compactor. 01186_ ALERT: Suspicious intruders detected, dispatching Cutter reinforcements to area. 01193_ K-01 Serf cleans the Terminal. 01207_ Knocked back. 01207_ U-05 Engineer destroyed. 01209_ Knocked back. Map ----- +----------------------------------------------------+ | ??????????????????############ # """"" """"" #?? | | ?????????????????????????????# # """"" """?????? | | ??????????????????????######## # """"" ""??????? | | ??????????????????????# # #######??###????? | | ??????????????????????# # #????########???? | | ??????????????????????#"" !| ######" #???? | | ??????????????????????#"T #%= =%[ #?? # | | ??????????????????????#"" #*! = %%# # | | ??????????????????????# # * % *%! # # | | ??????????????????????####### #####"*!!*=# # | | ????????????????????????????## ##??### =!##?? # | | ??????????????????????????### # ??#!]%##???# | | ??????????????????????##### # """ #[=*#??? # | | ??????????????????????# # """ +!!%###/## | | ??????????????????????# #! """ #]%!] | | ??????????????????????# # #=*==* | | ??????????????????????# # # ## ?# %= | | ??????????????????????# ##### ##?####?#!% ###### | | ??????????????????????# #???# #???????# #????? | | ??????????????????????# c#???# #???????# #????? | | ??????????????????????# c#???# #???????# T????? | | ??????????????????????# #???# #???????# #????? | | ??????????????????????# #???# #???????# #????? | | ??????????????????????# #???# #???????# #????? | | ??????????????????????# c#???# #??????? ????? | | ??????????????????????# @#???#+######## ! ????? | | ??????????????????????# #???# # H ????? | | ??????????????????????# #???# # ????? | | ?????????????########## ##### """ # =#???? | | ?????????? # """"" #####%????? | | ?????????? + """"" #????=????? | | ?????????? # """"" #???? ????? | | ???????????########+### """ # """ #???? ????? | | ????????????????? ???# """ # #?????????? | | ???????????????# ????# """ # #?????????? | | ???????????????#??????#k ##########?????????? | | ??????????????????????# #??????????????????? | | ??????????????????????#! """ "??????????????????? | | ??????????????????????# """ T#?????????????????? | | ??????????????????????# """ "#?????????????????? | | ??????????????????????# ?? #??????????????????? | | ??????????????????????#! ?? ??????????????????? | | ??????????????????????# ??? ??????????????????? | | ??????????????????????# ??? ??????????????????? | | ???????????????????????????####??????????????????? | | ?????????????????????????????????????????????????? | | ?????????????????????????????????????????????????? | | ?????????????????????????????????????????????????? | | ?????????????????????????????????????????????????? | | ?????????????????????????????????????????????????? | +----------------------------------------------------+ Best States ------------- Heat Dissipation 45 Energy Generation 16 Energy Capacity 290 Matter Stores 300 Matter Capacity 300 Sight Range 16 Terrain Scan Density 10 Armor Coverage 225 Evasion (%) 55 Targeting Accuracy 6 Item Schematics ----------------- None Robot Schematics ------------------ None Fabricated ------------ Nothing Repaired ---------- Nothing Alien Tech Used ----------------- None Achievements -------------- None Challenges ------------ None Game ------ Seed SniperServoReconstructor Manual? 0 Play Time 00:09:56 Cumulative 20.5 hours Start 2025.05.27 @ 19:04:17 End 2025.05.27 @ 19:13:28 Sessions 1 Manual Loads 0 Difficulty Rogue Special Mode None Game No. 42 Rogue 42 Adventurer 0 Explorer 0 Win Type - Total 0 Types 0/0/0/0/0/0/0/0/0/0 Lore% 18 Gallery% 29 Achievement% 25 Wizard Run 0 Options --------- Layout 0 ASCII 0 Keyboard 0 Movement Mouse Keybinds 0 Fullscreen 1 Font 18/SmallcapsGlow Map View 38x25 Zoom Use 95% Tactical HUD 1 Map Filters NONE Filters NONE Steam 1 RUN: 384d9738-74e9-4b4a-865a-04f192f334ec